fUST/lending_fUST_20240212
["ID","MTS","AMOUNT","RATE_DAILY","PERIOD"]
[313849239,1707752832051,-200.1182246,0.000195,2]
[313849240,1707752832070,-200.1182246,0.000195,2]
[313849241,1707752832095,-200.1182246,0.000195,2]
[313849242,1707752832115,-306.0,0.000195,2]
[313849243,1707752832134,-579.0,0.000195,2]
[313849244,1707752832154,-500.0,0.00019726,2]
[313849245,1707752832175,-500.0,0.00019726,2]
[313849246,1707752832196,-500.0,0.00019726,2]
[313849247,1707752832217,-500.0,0.00019726,2]
[313849248,1707752832238,-500.0,0.00019726,2]
[313849249,1707752832259,-500.0,0.00019726,2]
[313849250,1707752832279,-409.942721,0.00019726,2]
[313849251,1707752832300,-409.942721,0.00019726,2]
[313849252,1707752832321,-409.942721,0.00019726,2]
[313849253,1707752832346,-409.942721,0.00019726,2]
[313849254,1707752832366,-409.942721,0.00019726,2]
[313849255,1707752832387,-409.942721,0.00019726,2]
[313849256,1707752832408,-409.942721,0.00019726,2]
[313849257,1707752832431,-409.942721,0.00019726,2]
[313849258,1707752832452,-1327.83,0.00019726,2]
[313849259,1707752832472,-671.38,0.00019726,2]
[313849260,1707752832493,-1603.64,0.00019726,2]
[313849261,1707752832514,-500.0,0.00019726,2]
[313849262,1707752832535,-500.0,0.00019726,2]
[313849263,1707752832555,-500.0,0.00019726,2]
[313849264,1707752832577,-500.0,0.00019726,2]
[313849265,1707752832600,-500.0,0.00019726,2]
[313849266,1707752832621,-239.13758808,0.00019726,2]
[313849267,1707752832642,-500.0,0.00019726,2]
[313849268,1707752832666,-500.0,0.00019726,2]
[313849269,1707752832686,-500.0,0.00019726,2]
[313849270,1707752832706,-500.0,0.00019726,2]
[313849271,1707752832729,-1517.01,0.00019726,2]
[313849272,1707752832751,-612.39,0.00019726,2]
[313849273,1707752832771,-570.87,0.00019726,2]
[313849274,1707752832794,-2781.22,0.00019726,2]
[313849275,1707752832815,-926.44,0.00019726,2]
[313849276,1707752832838,-1127.95,0.00019726,2]
[313849277,1707752832859,-900.11,0.00019726,2]
[313849278,1707752832880,-2128.33,0.00019726,2]
[313849279,1707752832900,-500.0,0.00019726,2]
[313849280,1707752832922,-500.0,0.00019726,2]
[313849281,1707752832944,-1509.2,0.00019726,2]
[313849282,1707752832965,-626.0,0.00019726,2]
[313849283,1707752832988,-10621.62,0.00019726,2]
[313849284,1707752833009,-500.0,0.00019726,2]
[313849285,1707752833030,-1522.35,0.00019726,2]
[313849286,1707752833050,-10764.9,0.00019726,2]
[313849287,1707752833071,-1313.62,0.00019726,2]
[313849288,1707752833096,-500.0,0.00019726,2]
[313849289,1707752833117,-500.0,0.00019726,2]
[313849290,1707752833139,-500.0,0.00019726,2]
[313849291,1707752833162,-7608.55,0.00019726,2]
[313849292,1707752833183,-500.0,0.00019726,2]
[313849293,1707752833222,-500.0,0.00019726,2]
[313849294,1707752833245,-680.43,0.00019726,2]
[313849295,1707752833267,-954.03,0.00019726,2]
[313849296,1707752833288,-500.0,0.00019726,2]
[313849297,1707752833309,-1530.53,0.00019726,2]
[313849298,1707752833332,-408.62945701,0.00019726,2]
[313849299,1707752833357,-582.04,0.00019726,2]
[313849300,1707752833500,-6684.92,0.00019726,2]
[313849301,1707752833522,-500.0,0.00019726,2]
[313849302,1707752833543,-1539.36,0.00019726,2]
[313849303,1707752833564,-3571.59,0.00019726,2]
[313849304,1707752833587,-500.0,0.00019726,2]
[313849305,1707752833610,-5510.25,0.00019726,2]
[313849306,1707752833635,-13623.63,0.00019726,2]
[313849307,1707752833657,-1281.08772177,0.000199,2]
[313849308,1707752833677,-620.63405671,0.00019919,2]
[313849309,1707752833697,-200.0,0.00019978,2]
[313849310,1707752833717,-200.0,0.00019978,2]
[313849311,1707752833739,-200.0,0.00019978,2]
[313849312,1707752833759,-400.0,0.00019978,2]
[313849313,1707752833779,-157.04477798,0.0002,2]
[313849314,1707752833799,-324.28768484,0.0002,2]
[313849315,1707752833819,-169.50613981,0.0002,2]
[313849316,1707752833840,-681.44085564,0.0002,2]
[313849317,1707752833860,-6304.53229004,0.0002,2]
[313849318,1707752833880,-1202.57082301,0.0002,2]
[313849319,1707752833900,-232.15963997,0.0002,2]
[313849320,1707752833919,-2092.20651111,0.0002,2]
[313849321,1707752833938,-1500.0,0.0002,2]
[313849322,1707752833958,-1500.0,0.0002,2]
[313849323,1707752833979,-1500.0,0.0002,2]
[313849324,1707752833999,-1000.0,0.0002,20]
[313849325,1707752834019,-2000.0,0.0002,2]
[313849326,1707752834039,-151.0,0.0002,2]
[313849327,1707752834060,-500.0,0.0002,2]
[313849328,1707752834079,-500.0,0.0002,2]
[313849329,1707752834105,-500.0,0.0002,2]
[313849330,1707752834127,-500.0,0.0002,2]
[313849331,1707752834149,-500.0,0.0002,2]
[313849332,1707752834171,-500.0,0.0002,2]
[313849333,1707752834194,-409.942721,0.0002,2]
[313849334,1707752834215,-409.942729,0.0002,2]
[313849335,1707752834237,-1327.83,0.0002,2]
[313849336,1707752834257,-671.38,0.0002,2]
[313849337,1707752834278,-1603.64,0.0002,2]
[313849338,1707752834299,-500.0,0.0002,2]
[313849339,1707752834319,-500.0,0.0002,2]
[313849340,1707752834343,-500.0,0.0002,2]
[313849341,1707752834363,-500.0,0.0002,2]
[313849342,1707752834382,-500.0,0.0002,2]
[313849343,1707752834401,-6989.72665718,0.0002,2]
[313849344,1707752834421,-500.0,0.0002,2]
[313849345,1707752834441,-500.0,0.0002,2]
[313849346,1707752834468,-500.0,0.0002,2]
[313849347,1707752834488,-500.0,0.0002,2]
[313849348,1707752834508,-1517.01,0.0002,2]
[313849349,1707752834530,-612.39,0.0002,2]
[313849350,1707752834550,-570.87,0.0002,2]
[313849351,1707752834573,-2781.22,0.0002,2]
[313849352,1707752834598,-926.44,0.0002,2]
[313849353,1707752834618,-1127.95,0.0002,2]
[313849354,1707752834640,-900.11,0.0002,2]
[313849355,1707752834666,-2128.33,0.0002,2]
[313849356,1707752834686,-500.0,0.0002,2]
[313849357,1707752834707,-500.0,0.0002,2]
[313849358,1707752834728,-1509.2,0.0002,2]
[313849359,1707752834750,-626.0,0.0002,2]
[313849360,1707752834772,-10621.62,0.0002,2]
[313849361,1707752834794,-500.0,0.0002,2]
[313849362,1707752834817,-1522.35,0.0002,2]
[313849363,1707752834843,-10764.9,0.0002,2]
[313849364,1707752834872,-1313.62,0.0002,2]
[313849365,1707752834895,-500.0,0.0002,2]
[313849366,1707752834919,-500.0,0.0002,2]
[313849367,1707752834940,-500.0,0.0002,2]
[313849368,1707752834961,-7608.55,0.0002,2]
[313849369,1707752834982,-500.0,0.0002,2]
[313849370,1707752835004,-680.43,0.0002,2]
[313849371,1707752835025,-954.03,0.0002,2]
[313849372,1707752835048,-1530.53,0.0002,2]
[313849373,1707752835068,-2001.177962,0.0002,2]
[313849374,1707752835094,-582.04,0.0002,2]
[313849375,1707752835114,-6684.92,0.0002,2]
[313849376,1707752835134,-500.0,0.0002,2]
[313849377,1707752835158,-1539.36,0.0002,2]
[313849378,1707752835179,-3571.59,0.0002,2]
[313849379,1707752835199,-500.0,0.0002,2]
[313849380,1707752835223,-5510.25,0.0002,2]
[313849381,1707752835244,-13623.63,0.0002,2]
[313849382,1707752835266,-200.0,0.00020134,2]
[313849383,1707752835287,-500.0,0.00020136,2]
[313849384,1707752835308,-69632.20534775,0.00020178,2]
[313849385,1707752835500,-500.0,0.00019178,2]
[313849386,1707752835521,-500.0,0.00019452,2]
[313849387,1707752835542,-500.0,0.00019726,2]
[313849388,1707752835564,-500.0,0.0002,2]
[313849389,1707752835585,-14417.60723,0.00020178,2]
[313849390,1707752835773,-21364.31885653,0.00020178,2]
[313849391,1707752835793,-196.00038664,0.00020179,2]
[313849392,1707752835813,-1020.89913796,0.00020179,2]
[313849393,1707752835836,-5885.99771759,0.0002018,2]
[313849394,1707752835857,-200.0,0.0002018,2]
[313849395,1707752835876,-344.98720625,0.0002018,2]
[313849396,1707752835896,-685.97455032,0.0002018,2]
[313849397,1707752835916,-151.0,0.00020203,2]
[313849398,1707752835937,-500.0,0.00020273,2]
[313849399,1707752835958,-477.88083194,0.00020273,2]
[313849400,1707752835979,-500.0,0.00020273,2]
[313849401,1707752836001,-500.0,0.00020273,2]
[313849402,1707752836022,-160.07575842,0.00020273,2]
[313849403,1707752836043,-1327.83,0.00020273,2]
[313849404,1707752836065,-671.38,0.00020273,2]
[313849405,1707752836090,-1603.64,0.00020273,2]
[313849406,1707752836112,-500.0,0.00020273,2]
[313849407,1707752836132,-599.95,0.00020273,2]
[313849408,1707752836243,-500.0,0.00020273,2]
[313849409,1707752836289,-500.0,0.00020273,2]
[313849410,1707752836311,-500.0,0.00020273,2]
[313849411,1707752836332,-500.0,0.00020273,2]
[313849412,1707752836357,-500.0,0.00020273,2]
[313849413,1707752836379,-1517.01,0.00020273,2]
[313849414,1707752836400,-612.39,0.00020273,2]
[313849415,1707752836421,-570.87,0.00020273,2]
[313849416,1707752836442,-2781.22,0.00020273,2]
[313849417,1707752836463,-926.44,0.00020273,2]
[313849418,1707752836487,-1127.95,0.00020273,2]
[313849419,1707752836509,-900.11,0.00020273,2]
[313849420,1707752836530,-500.0,0.00020273,2]
[313849421,1707752836551,-500.0,0.00020273,2]
[313849422,1707752836572,-1509.2,0.00020273,2]
[313849423,1707752836596,-626.0,0.00020273,2]
[313849424,1707752836620,-10621.62,0.00020273,2]
[313849425,1707752836643,-500.0,0.00020273,2]
[313849426,1707752836668,-1522.35,0.00020273,2]
[313849427,1707752836689,-10764.9,0.00020273,2]
[313849428,1707752836712,-1313.62,0.00020273,2]
[313849429,1707752836733,-500.0,0.00020273,2]
[313849430,1707752836755,-500.0,0.00020273,2]
[313849431,1707752836776,-500.0,0.00020273,2]
[313849432,1707752836798,-7608.55,0.00020273,2]
[313849433,1707752836819,-500.0,0.00020273,2]
[313849434,1707752836846,-680.43,0.00020273,2]
[313849435,1707752836867,-954.03,0.00020273,2]
[313849436,1707752836888,-1530.53,0.00020273,2]
[313849437,1707752836910,-582.04,0.00020273,2]
[313849438,1707752836933,-6099.40647435,0.00020273,2]
[313849439,1707752836964,-585.51352565,0.00020273,2]
[313849440,1707752836986,-344.84267033,0.00020273,2]
[313849441,1707752837007,-1539.36,0.00020273,2]
[313849442,1707752837030,-3571.59,0.00020273,2]
[313849443,1707752837052,-500.0,0.00020273,2]
[313849444,1707752837075,-5510.25,0.00020273,2]
[313849445,1707752837099,-13623.63,0.00020273,2]
[313849446,1707752837120,-500.0,0.00020273,2]
[313849447,1707752837140,-5445.04037998,0.000203,2]
[313849448,1707752837163,-166.666666,0.000203,2]
[313849449,1707752837190,-535.50901674,0.0002039,2]
[313849450,1707752837211,-237.23888705,0.0002039,2]
[313849451,1707752837231,-273.59939744,0.00020391,2]
[313849452,1707752837252,-299.554718,0.000204,3]
[313849453,1707752837273,-290.1353,0.000204,2]
[313849454,1707752837294,-155.15521974,0.00020401,2]
[313849455,1707752837319,-19946.17202544,0.00020402,2]
[313849456,1707752837340,-44444.0,0.00020447,2]
[313849457,1707752837361,-175.6097996,0.00020456,2]
[313849458,1707752837382,-500.0,0.00020547,2]
[313849459,1707752837403,-500.0,0.00020547,2]
[313849460,1707752837425,-500.0,0.00020547,2]
[313849461,1707752837445,-1327.83,0.00020547,2]
[313849462,1707752837467,-671.38,0.00020547,2]
[313849463,1707752837487,-1603.64,0.00020547,2]
[313849464,1707752837508,-207.0,0.00020547,2]
[313849465,1707752837529,-467.05,0.00020547,2]
[313849466,1707752837552,-500.0,0.00020547,2]
[313849467,1707752837575,-500.0,0.00020547,2]
[313849468,1707752837601,-500.0,0.00020547,2]
[313849469,1707752837623,-1517.01,0.00020547,2]
[313849470,1707752837645,-612.39,0.00020547,2]
[313849471,1707752837670,-570.87,0.00020547,2]
[313849472,1707752837691,-2781.22,0.00020547,2]
[313849473,1707752837713,-926.44,0.00020547,2]
[313849474,1707752837735,-1127.95,0.00020547,2]
[313849475,1707752837757,-900.11,0.00020547,2]
[313849476,1707752837779,-500.0,0.00020547,2]
[313849477,1707752837801,-500.0,0.00020547,2]
[313849478,1707752837824,-626.0,0.00020547,2]
[313849479,1707752837850,-10621.62,0.00020547,2]
[313849480,1707752837872,-500.0,0.00020547,2]
[313849481,1707752837893,-1522.35,0.00020547,2]
[313849482,1707752837915,-10764.9,0.00020547,2]
[313849483,1707752837936,-1313.62,0.00020547,2]
[313849484,1707752837957,-500.0,0.00020547,2]
[313849485,1707752837977,-500.0,0.00020547,2]
[313849486,1707752837997,-500.0,0.00020547,2]
[313849487,1707752838018,-7608.55,0.00020547,2]
[313849488,1707752838037,-500.0,0.00020547,2]
[313849489,1707752838058,-680.43,0.00020547,2]
[313849490,1707752838078,-954.03,0.00020547,2]
[313849491,1707752838101,-1530.53,0.00020547,2]
[313849492,1707752838124,-582.04,0.00020547,2]
[313849493,1707752838146,-6684.92,0.00020547,2]
[313849494,1707752838167,-1539.36,0.00020547,2]
[313849495,1707752838190,-3571.59,0.00020547,2]
[313849496,1707752838213,-500.0,0.00020547,2]
[313849497,1707752838234,-5510.25,0.00020547,2]
[313849498,1707752838261,-13623.63,0.00020547,2]
[313849499,1707752838285,-500.0,0.00020547,2]
[313849500,1707752838307,-50000.0,0.00020581,2]
[313849501,1707752838330,-50000.0,0.00020597,2]
[313849502,1707752838354,-5000.0,0.00020598,2]
[313849503,1707752838376,-46239.73994768,0.00020598,2]
[313849504,1707752838399,-5000.0,0.00020598,2]
[313849505,1707752838421,-8099.65899193,0.00020598,2]
[313849506,1707752838442,-5000.0,0.00020598,2]
[313849507,1707752838464,-5000.0,0.00020598,2]
[313849508,1707752838487,-5000.0,0.00020598,2]
[313849509,1707752838508,-5000.0,0.00020598,2]
[313849510,1707752838530,-33827.47678127,0.00020598,2]
[313849511,1707752838552,-2353.36429315,0.00020598,2]
[313849512,1707752840122,-5877.4,0.0001999,3]
[313849513,1707752840146,-2646.63570685,0.00020598,2]
[313849514,1707752840168,-5000.0,0.00020598,2]
[313849515,1707752840189,-5000.0,0.00020598,2]
[313849516,1707752840212,-5000.0,0.00020598,2]
[313849517,1707752840235,-5000.0,0.00020598,2]
[313849518,1707752840258,-14004.13661734,0.00020598,2]
[313849519,1707752840280,-5000.0,0.00020598,2]
[313849520,1707752840301,-23391.35736985,0.00020598,2]
[313849521,1707752840323,-5000.0,0.00020598,2]
[313849522,1707752840345,-151.0,0.00020682,2]
[313849523,1707752840365,-500.0,0.00020821,2]
[313849524,1707752840384,-500.0,0.00020821,2]
[313849525,1707752840404,-216.08215852,0.00020821,2]
[313849526,1707752840424,-1327.83,0.00020821,2]
[313849527,1707752840446,-671.38,0.00020821,2]
[313849528,1707752840466,-1603.64,0.00020821,2]
[313849529,1707752840486,-750.0,0.00020821,2]
[313849530,1707752840608,-500.0,0.00020821,2]
[313849531,1707752840635,-500.0,0.00020821,2]
[313849532,1707752840658,-500.0,0.00020821,2]
[313849533,1707752840679,-1517.01,0.00020821,2]
[313849534,1707752840705,-612.39,0.00020821,2]
[313849535,1707752840727,-570.87,0.00020821,2]
[313849536,1707752840749,-2781.22,0.00020821,2]
[313849537,1707752840771,-926.44,0.00020821,2]
[313849538,1707752840791,-1127.95,0.00020821,2]
[313849539,1707752840814,-900.11,0.00020821,2]
[313849540,1707752840834,-388.7152164,0.00020821,2]
[313849541,1707752840857,-626.0,0.00020821,2]
[313849542,1707752840879,-10621.62,0.00020821,2]
[313849543,1707752840900,-357.29,0.00020821,2]
[313849544,1707752840921,-1522.35,0.00020821,2]
[313849545,1707752840943,-10764.9,0.00020821,2]
[313849546,1707752840963,-1313.62,0.00020821,2]
[313849547,1707752840984,-500.0,0.00020821,2]
[313849548,1707752841005,-500.0,0.00020821,2]
[313849549,1707752841026,-500.0,0.00020821,2]
[313849550,1707752841047,-7608.55,0.00020821,2]
[313849551,1707752841067,-435.85331003,0.00020821,2]
[313849552,1707752841088,-680.43,0.00020821,2]
[313849553,1707752841110,-954.03,0.00020821,2]
[313849554,1707752841132,-1530.53,0.00020821,2]
[313849555,1707752841155,-582.04,0.00020821,2]
[313849556,1707752841177,-6684.92,0.00020821,2]
[313849557,1707752841200,-1539.36,0.00020821,2]
[313849558,1707752841221,-3571.59,0.00020821,2]
[313849559,1707752841242,-500.0,0.00020821,2]
[313849560,1707752841269,-5510.25,0.00020821,2]
[313849561,1707752841291,-13623.63,0.00020821,2]
[313849562,1707752841313,-500.0,0.00020821,2]
[313849563,1707752841335,-500.0,0.00020822,2]
[313849564,1707752841356,-500.0,0.00020822,2]
[313849565,1707752841378,-500.0,0.00020822,2]
[313849566,1707752841399,-600.1620004,0.00020822,2]
[313849567,1707752841419,-500.0,0.00020822,2]
[313849568,1707752841440,-500.0,0.00020822,2]
[313849569,1707752841459,-500.0,0.00020822,2]
[313849570,1707752841480,-500.0,0.00020822,2]
[313849571,1707752841500,-205.84410669,0.00020822,2]
[313849572,1707752841521,-529.32784617,0.00020822,2]
[313849573,1707752841547,-500.0,0.00020822,2]
[313849574,1707752841569,-531.05375629,0.00020822,2]
[313849575,1707752841592,-500.0,0.00020822,2]
[313849576,1707752841615,-297.83965553,0.00020822,2]
[313849577,1707752841639,-408.32887366,0.00020822,2]
[313849578,1707752841660,-500.0,0.00020822,2]
[313849579,1707752841682,-500.0,0.00020822,2]
[313849580,1707752841702,-500.0,0.00020822,2]
[313849581,1707752841723,-500.0,0.00020822,2]
[313849582,1707752841744,-349.66098439,0.00020822,2]
[313849583,1707752841770,-500.0,0.00020822,2]
[313849584,1707752841790,-500.0,0.00020822,2]
[313849585,1707752841811,-500.0,0.00020822,2]
[313849586,1707752841830,-500.0,0.00020822,2]
[313849587,1707752841853,-500.0,0.00020822,2]
[313849588,1707752841873,-500.0,0.00020822,2]
[313849589,1707752841894,-425.97235614,0.00020822,2]
[313849590,1707752841914,-500.0,0.00020822,2]
[313849591,1707752841933,-500.0,0.00020822,2]
[313849592,1707752841953,-500.0,0.00020822,2]
[313849593,1707752841972,-500.0,0.00020822,2]
[313849594,1707752841991,-500.0,0.00020822,2]
[313849595,1707752842011,-500.0,0.00020822,2]
[313849596,1707752842032,-500.0,0.00020822,2]
[313849597,1707752842052,-500.0,0.00020822,2]
[313849598,1707752842071,-500.0,0.00020822,2]
[313849599,1707752842093,-500.0,0.00020822,2]
[313849600,1707752842112,-500.0,0.00020822,2]
[313849601,1707752842133,-392.74277858,0.00020822,2]
[313849602,1707752842155,-500.0,0.00020822,2]
[313849603,1707752842180,-500.0,0.00020822,2]
[313849604,1707752842203,-500.0,0.00020822,2]
[313849605,1707752842223,-500.0,0.00020822,2]
[313849606,1707752842244,-486.43593251,0.00020822,2]
[313849607,1707752842266,-500.0,0.00020822,2]
[313849608,1707752842289,-604.51368286,0.00020822,2]
[313849609,1707752842310,-500.0,0.00020822,2]
[313849610,1707752842331,-500.0,0.00020822,2]
[313849611,1707752842352,-500.0,0.00020822,2]
[313849612,1707752842373,-500.0,0.00020822,2]
[313849613,1707752842394,-500.0,0.00020822,2]
[313849614,1707752842414,-272.6417199,0.00020822,2]
[313849615,1707752842434,-500.0,0.00020822,2]
[313849616,1707752842455,-500.0,0.00020822,2]
[313849617,1707752842475,-500.0,0.00020822,2]
[313849618,1707752842497,-500.0,0.00020822,2]
[313849619,1707752842517,-500.0,0.00020822,2]
[313849620,1707752842537,-500.0,0.00020822,2]
[313849621,1707752842557,-500.0,0.00020822,2]
[313849622,1707752842579,-500.0,0.00020822,2]
[313849623,1707752842602,-500.0,0.00020822,2]
[313849624,1707752842623,-500.0,0.00020822,2]
[313849625,1707752842646,-352.3711441,0.00020822,2]
[313849626,1707752842667,-500.0,0.00020822,2]
[313849627,1707752842688,-500.0,0.00020822,2]
[313849628,1707752842709,-500.0,0.00020822,2]
[313849629,1707752842729,-500.0,0.00020822,2]
[313849630,1707752842750,-500.0,0.00020822,2]
[313849631,1707752842771,-500.0,0.00020822,2]
[313849632,1707752842791,-500.0,0.00020822,2]
[313849633,1707752842815,-500.0,0.00020822,2]
[313849634,1707752842835,-563.18522553,0.00020822,2]
[313849635,1707752842858,-500.0,0.00020822,2]
[313849636,1707752842879,-500.0,0.00020822,2]
[313849637,1707752842902,-219.30561394,0.00020822,2]
[313849638,1707752842927,-500.0,0.00020822,2]
[313849639,1707752842947,-500.0,0.00020822,2]
[313849640,1707752842969,-500.0,0.00020822,2]
[313849641,1707752842989,-500.0,0.00020822,2]
[313849642,1707752843010,-500.0,0.00020822,2]
[313849643,1707752843030,-500.0,0.00020822,2]
[313849644,1707752843050,-500.0,0.00020822,2]
[313849645,1707752843070,-500.0,0.00020822,2]
[313849646,1707752843089,-500.0,0.00020822,2]
[313849647,1707752843112,-500.0,0.00020822,2]
[313849648,1707752843133,-500.0,0.00020822,2]
[313849649,1707752843153,-500.0,0.00020822,2]
[313849650,1707752843174,-500.0,0.00020822,2]
[313849651,1707752843195,-500.0,0.00020822,2]
[313849652,1707752843312,-500.0,0.00020822,2]
[313849653,1707752843335,-500.0,0.00020822,2]
[313849654,1707752843356,-500.0,0.00020822,2]
[313849655,1707752843376,-500.0,0.00020822,2]
[313849656,1707752843397,-500.0,0.00020822,2]
[313849657,1707752843419,-500.0,0.00020822,2]
[313849658,1707752843438,-500.0,0.00020822,2]
[313849659,1707752843460,-500.0,0.00020822,2]
[313849660,1707752843482,-500.0,0.00020822,2]
[313849661,1707752843502,-500.0,0.00020822,2]
[313849662,1707752843522,-500.0,0.00020822,2]
[313849663,1707752843544,-500.0,0.00020822,2]
[313849664,1707752843566,-339.4453982,0.00020822,2]
[313849665,1707752843588,-500.0,0.00020822,2]
[313849666,1707752843611,-500.0,0.00020822,2]
[313849667,1707752843633,-500.0,0.00020822,2]
[313849668,1707752843658,-500.0,0.00020822,2]
[313849669,1707752843679,-550.20553645,0.00020822,2]
[313849670,1707752843702,-500.0,0.00020822,2]
[313849671,1707752843723,-500.0,0.00020822,2]
[313849672,1707752843744,-500.0,0.00020822,2]
[313849673,1707752843764,-500.0,0.00020822,2]
[313849674,1707752843784,-500.0,0.00020822,2]
[313849675,1707752843806,-500.0,0.00020822,2]
[313849676,1707752843828,-568.66702973,0.00020822,2]
[313849677,1707752843850,-500.0,0.00020822,2]
[313849678,1707752843871,-500.0,0.00020822,2]
[313849679,1707752843892,-500.0,0.00020822,2]
[313849680,1707752843913,-500.0,0.00020822,2]
[313849681,1707752843933,-500.0,0.00020822,2]
[313849682,1707752843957,-500.0,0.00020822,2]
[313849683,1707752843977,-500.0,0.00020822,2]
[313849684,1707752844001,-500.0,0.00020822,2]
[313849685,1707752844022,-500.0,0.00020822,2]
[313849686,1707752844042,-500.0,0.00020822,2]
[313849687,1707752844064,-674.37783373,0.00020822,2]
[313849688,1707752844085,-500.0,0.00020822,2]
[313849689,1707752844109,-500.0,0.00020822,2]
[313849690,1707752844131,-674.37783373,0.00020822,2]
[313849691,1707752844156,-500.0,0.00020822,2]
[313849692,1707752844176,-500.0,0.00020822,2]
[313849693,1707752844198,-674.37783373,0.00020822,2]
[313849694,1707752844220,-500.0,0.00020822,2]
[313849695,1707752844240,-500.0,0.00020822,2]
[313849696,1707752844262,-674.37783373,0.00020822,2]
[313849697,1707752844281,-500.0,0.00020822,2]
[313849698,1707752844304,-674.37783373,0.00020822,2]
[313849699,1707752844325,-500.0,0.00020822,2]
[313849700,1707752844349,-610.07055135,0.00020822,2]
[313849701,1707752844370,-208.83275062,0.00020822,2]
[313849702,1707752844393,-500.0,0.00020822,2]
[313849703,1707752844413,-174.29484345,0.00020822,2]
[313849704,1707752844433,-276.44080276,0.00020822,2]
[313849705,1707752844453,-187.95184702,0.00020822,2]
[313849706,1707752844473,-552.6770188,0.00020822,2]
[313849707,1707752844494,-497.6103081,0.00020822,2]
[313849708,1707752844516,-674.37783373,0.00020822,2]
[313849709,1707752844536,-500.0,0.00020822,2]
[313849710,1707752844557,-674.37783373,0.00020822,2]
[313849711,1707752844577,-245.09912521,0.00020822,2]
[313849712,1707752844598,-500.0,0.00020822,2]
[313849713,1707752844619,-674.37783373,0.00020822,2]
[313849714,1707752844642,-500.0,0.00020822,2]
[313849715,1707752844663,-485.27540213,0.00020822,2]
[313849716,1707752844684,-674.37783373,0.00020822,2]
[313849717,1707752844704,-500.0,0.00020822,2]
[313849718,1707752844725,-674.37783373,0.00020822,2]
[313849719,1707752844746,-674.37783373,0.00020822,2]
[313849720,1707752844767,-674.37783373,0.00020822,2]
[313849721,1707752844789,-500.0,0.00020822,2]
[313849722,1707752844814,-674.37783372,0.00020822,2]
[313849723,1707752844834,-674.37783373,0.00020822,2]
[313849724,1707752844856,-500.0,0.00020822,2]
[313849725,1707752844876,-674.37783373,0.00020822,2]
[313849726,1707752844896,-674.37783373,0.00020822,2]
[313849727,1707752844917,-674.37783373,0.00020822,2]
[313849728,1707752844939,-674.37783373,0.00020822,2]
[313849729,1707752844959,-674.37783373,0.00020822,2]
[313849730,1707752844981,-674.37783373,0.00020822,2]
[313849731,1707752845003,-674.37783373,0.00020822,2]
[313849732,1707752845026,-674.37783373,0.00020822,2]
[313849733,1707752845046,-674.37783373,0.00020822,2]
[313849734,1707752845066,-674.37783373,0.00020822,2]
[313849735,1707752845087,-674.37783373,0.00020822,2]
[313849736,1707752845110,-674.37783373,0.00020822,2]
[313849737,1707752845132,-674.37783373,0.00020822,2]
[313849738,1707752845153,-674.37783373,0.00020822,2]